[Event "Titled Tuesday Blitz February 07 Early 2023"]
[White "Cherniaiev, Tykhon"]
[Black "I_KID_you_not"]
[WhiteFideId "14182360"]
[WhiteElo "2330"]
[BlackElo "2342"]
[Result "1-0"]
[Round "06"]
[TimeControl "180+2"]
[Date "2023.02.07"]
[WhiteClock "0:00:05"]
[BlackClock "0:00:20"]

1. Nf3 {[%clk 0:03:00]}  c5 {[%clk 0:02:59]} 2. c4 {[%clk 0:02:56]}  Nc6 {[%clk 0:02:58]} 3. Nc3 {[%clk 0:02:56]}  g6 {[%clk 0:02:58]} 4. d4 {[%clk 0:02:56]}  cxd4 {[%clk 0:02:58]} 5. Nxd4 {[%clk 0:02:57]}  Bg7 {[%clk 0:02:59]} 6. Nxc6 {[%clk 0:02:57]}  bxc6 {[%clk 0:02:59]} 7. g3 {[%clk 0:02:58]}  Nf6 {[%clk 0:02:57]} 8. Bg2 {[%clk 0:02:59]}  O-O {[%clk 0:02:56]} 9. O-O {[%clk 0:02:59]}  Rb8 {[%clk 0:02:52]} 10. Qc2 {[%clk 0:02:58]}  Qa5 {[%clk 0:02:40]} 11. Bf4 {[%clk 0:02:49]}  d6 {[%clk 0:02:39]} 12. a3 {[%clk 0:02:44]}  Bd7 {[%clk 0:02:33]} 13. b4 {[%clk 0:02:43]}  Qh5 {[%clk 0:02:33]} 14. Rad1 {[%clk 0:02:30]}  Bh3 {[%clk 0:02:30]} 15. f3 {[%clk 0:02:22]}  Bxg2 {[%clk 0:01:58]} 16. Kxg2 {[%clk 0:02:23]}  g5 {[%clk 0:01:53]} 17. g4 {[%clk 0:02:09]}  Nxg4 {[%clk 0:01:53]} 18. fxg4 {[%clk 0:02:10]}  Qxg4+ {[%clk 0:01:54]} 19. Bg3 {[%clk 0:02:10]}  f5 {[%clk 0:01:54]} 20. h3 {[%clk 0:01:29]}  Qxc4 {[%clk 0:01:54]} 21. Rxf5 {[%clk 0:01:14]}  Rxf5 {[%clk 0:01:36]} 22. Qxf5 {[%clk 0:01:15]}  Qxc3 {[%clk 0:01:36]} 23. Qe6+ {[%clk 0:01:12]}  Kh8 {[%clk 0:01:36]} 24. Qxe7 {[%clk 0:01:09]}  Rf8 {[%clk 0:01:18]} 25. Rxd6 {[%clk 0:00:36]}  Qc1 {[%clk 0:01:08]} 26. Rd8 {[%clk 0:00:33]}  Qf1+ {[%clk 0:01:07]} 27. Kh2 {[%clk 0:00:34]}  h6 {[%clk 0:00:42]} 28. Rxf8+ {[%clk 0:00:32]}  Bxf8 {[%clk 0:00:42]} 29. Qe4 {[%clk 0:00:17]}  Bg7 {[%clk 0:00:39]} 30. a4 {[%clk 0:00:16]}  h5 {[%clk 0:00:38]} 31. Qe8+ {[%clk 0:00:16]}  Kh7 {[%clk 0:00:37]} 32. Qxh5+ {[%clk 0:00:16]}  Kg8 {[%clk 0:00:37]} 33. Qe8+ {[%clk 0:00:15]}  Kh7 {[%clk 0:00:37]} 34. Qe4+ {[%clk 0:00:15]}  Kg8 {[%clk 0:00:37]} 35. b5 {[%clk 0:00:14]}  cxb5 {[%clk 0:00:37]} 36. axb5 {[%clk 0:00:15]}  Qd1 {[%clk 0:00:30]} 37. Be5 {[%clk 0:00:08]}  Bxe5+ {[%clk 0:00:24]} 38. Qxe5 {[%clk 0:00:09]}  Qd2 {[%clk 0:00:24]} 39. Qb8+ {[%clk 0:00:08]}  Kf7 {[%clk 0:00:24]} 40. Qxa7+ {[%clk 0:00:09]}  Kg6 {[%clk 0:00:25]} 41. Qb6+ {[%clk 0:00:03]}  Kh5 {[%clk 0:00:25]} 42. Qf2 {[%clk 0:00:03]}  Qd6+ {[%clk 0:00:24]} 43. Qg3 {[%clk 0:00:04]}  Qc5 {[%clk 0:00:21]} 44. Qf3+ {[%clk 0:00:04]}  Kg6 {[%clk 0:00:20]} 45. Qc6+ {[%clk 0:00:05]} 1-0


[Site "https://www.chess.com"]

[Event "Titled Tuesday Blitz February 07 Early 2023"]
[White "Mazurkiewicz, Michal"]
[Black "Mendez Machado, Andre"]
[WhiteFideId "1124943"]
[BlackFideId "6603793"]
[WhiteElo "2145"]
[BlackElo "1974"]
[Result "1-0"]
[Round "06"]
[TimeControl "180+2"]
[Date "2023.02.07"]
[WhiteClock "0:00:47"]
[BlackClock "0:00:10"]

1. e4 {[%clk 0:03:00]}  e5 {[%clk 0:02:18]} 2. Nf3 {[%clk 0:03:00]}  Nc6 {[%clk 0:02:17]} 3. d3 {[%clk 0:03:00]}  Bc5 {[%clk 0:02:15]} 4. g3 {[%clk 0:03:01]}  Nf6 {[%clk 0:02:14]} 5. Bg2 {[%clk 0:03:01]}  d6 {[%clk 0:02:15]} 6. O-O {[%clk 0:03:01]}  a5 {[%clk 0:02:13]} 7. a4 {[%clk 0:02:59]}  Ba7 {[%clk 0:02:13]} 8. Nc3 {[%clk 0:02:59]}  O-O {[%clk 0:02:12]} 9. Nb5 {[%clk 0:02:59]}  h6 {[%clk 0:02:01]} 10. Nxa7 {[%clk 0:02:58]}  Rxa7 {[%clk 0:02:02]} 11. h3 {[%clk 0:02:56]}  Ra8 {[%clk 0:01:56]} 12. c3 {[%clk 0:02:46]}  Ne8 {[%clk 0:01:54]} 13. d4 {[%clk 0:02:45]}  f5 {[%clk 0:01:51]} 14. exf5 {[%clk 0:02:39]}  Bxf5 {[%clk 0:01:48]} 15. dxe5 {[%clk 0:02:32]}  Be4 {[%clk 0:01:08]} 16. exd6 {[%clk 0:02:24]}  Nxd6 {[%clk 0:01:06]} 17. Nd4 {[%clk 0:02:19]}  Bxg2 {[%clk 0:00:56]} 18. Kxg2 {[%clk 0:02:20]}  Ne5 {[%clk 0:00:49]} 19. Ne6 {[%clk 0:02:17]}  Qd7 {[%clk 0:00:44]} 20. Nxf8 {[%clk 0:02:16]}  Qc6+ {[%clk 0:00:43]} 21. f3 {[%clk 0:02:10]}  Rxf8 {[%clk 0:00:42]} 22. Bf4 {[%clk 0:02:10]}  Nec4 {[%clk 0:00:37]} 23. Qd4 {[%clk 0:01:43]}  Nf5 {[%clk 0:00:29]} 24. Qe4 {[%clk 0:01:39]}  Qxe4 {[%clk 0:00:20]} 25. fxe4 {[%clk 0:01:40]}  Nfe3+ {[%clk 0:00:21]} 26. Kg1 {[%clk 0:01:33]}  Nxf1 {[%clk 0:00:21]} 27. Rxf1 {[%clk 0:01:33]}  Nxb2 {[%clk 0:00:21]} 28. Rb1 {[%clk 0:01:33]}  Nxa4 {[%clk 0:00:20]} 29. c4 {[%clk 0:01:02]}  Nc3 {[%clk 0:00:17]} 30. Rxb7 {[%clk 0:01:01]}  Nxe4 {[%clk 0:00:17]} 31. Rxc7 {[%clk 0:00:58]}  Ra8 {[%clk 0:00:17]} 32. Be5 {[%clk 0:00:57]}  Nf6 {[%clk 0:00:17]} 33. c5 {[%clk 0:00:54]}  a4 {[%clk 0:00:17]} 34. c6 {[%clk 0:00:54]}  a3 {[%clk 0:00:18]} 35. Rb7 {[%clk 0:00:53]}  a2 {[%clk 0:00:17]} 36. c7 {[%clk 0:00:47]}  a1=Q+ {[%clk 0:00:16]} 37. Bxa1 {[%clk 0:00:47]}  Rxa1+ {[%clk 0:00:17]} 38. Kg2 {[%clk 0:00:48]}  Ra2+ {[%clk 0:00:18]} 39. Kf3 {[%clk 0:00:48]}  Ra3+ {[%clk 0:00:14]} 40. Ke2 {[%clk 0:00:48]}  Ra2+ {[%clk 0:00:13]} 41. Kd3 {[%clk 0:00:48]}  Ra3+ {[%clk 0:00:10]} 42. Kc2 {[%clk 0:00:47]}  Ra2+ {[%clk 0:00:10]} 43. Kb3 {[%clk 0:00:47]} 1-0


[Site "https://www.chess.com"]

[Event "Titled Tuesday Blitz February 07 Early 2023"]
[White "Alhadad, Mahmoud"]
[Black "Begunov, Konstantin"]
[WhiteFideId "11501863"]
[BlackFideId "4118510"]
[WhiteElo "1840"]
[BlackElo "2325"]
[Result "1-0"]
[Round "06"]
[TimeControl "180+2"]
[Date "2023.02.07"]
[WhiteClock "0:00:56"]
[BlackClock "0:00:07"]

1. e4 {[%clk 0:03:00]}  c5 {[%clk 0:02:45]} 2. Nc3 {[%clk 0:03:00]}  d6 {[%clk 0:02:45]} 3. f4 {[%clk 0:03:00]}  g6 {[%clk 0:02:44]} 4. Nf3 {[%clk 0:03:01]}  Bg7 {[%clk 0:02:44]} 5. Bc4 {[%clk 0:03:01]}  Nc6 {[%clk 0:02:44]} 6. O-O {[%clk 0:03:02]}  Nf6 {[%clk 0:02:39]} 7. d3 {[%clk 0:03:02]}  O-O {[%clk 0:02:38]} 8. Qe1 {[%clk 0:03:01]}  Nd4 {[%clk 0:02:36]} 9. Nxd4 {[%clk 0:03:01]}  cxd4 {[%clk 0:02:35]} 10. Ne2 {[%clk 0:03:02]}  Nd7 {[%clk 0:02:31]} 11. Qf2 {[%clk 0:02:59]}  Qb6 {[%clk 0:02:22]} 12. a4 {[%clk 0:02:59]}  a5 {[%clk 0:02:17]} 13. b3 {[%clk 0:02:38]}  e6 {[%clk 0:01:51]} 14. Bb2 {[%clk 0:02:37]}  e5 {[%clk 0:01:46]} 15. f5 {[%clk 0:02:35]}  Nf6 {[%clk 0:01:24]} 16. fxg6 {[%clk 0:02:27]}  hxg6 {[%clk 0:01:23]} 17. Qh4 {[%clk 0:02:27]}  Qd8 {[%clk 0:01:19]} 18. Bc1 {[%clk 0:02:26]}  Be6 {[%clk 0:01:15]} 19. Bg5 {[%clk 0:02:23]}  d5 {[%clk 0:00:58]} 20. exd5 {[%clk 0:02:04]}  Bf5 {[%clk 0:00:58]} 21. Ng3 {[%clk 0:01:57]}  Qd6 {[%clk 0:00:57]} 22. Nxf5 {[%clk 0:01:57]}  gxf5 {[%clk 0:00:58]} 23. Rxf5 {[%clk 0:01:57]}  Nh7 {[%clk 0:00:58]} 24. Raf1 {[%clk 0:01:48]}  Qg6 {[%clk 0:00:33]} 25. R1f3 {[%clk 0:01:33]}  f6 {[%clk 0:00:28]} 26. Bd2 {[%clk 0:01:17]}  Rad8 {[%clk 0:00:24]} 27. d6+ {[%clk 0:01:03]}  Kh8 {[%clk 0:00:22]} 28. Rh5 {[%clk 0:01:03]}  Rxd6 {[%clk 0:00:19]} 29. Rg3 {[%clk 0:01:04]}  Qxh5 {[%clk 0:00:11]} 30. Qxh5 {[%clk 0:01:02]}  f5 {[%clk 0:00:12]} 31. Rh3 {[%clk 0:00:57]}  Rh6 {[%clk 0:00:07]} 32. Bxh6 {[%clk 0:00:56]} 1-0


[Site "https://www.chess.com"]

[Event "Titled Tuesday Blitz February 07 Early 2023"]
[White "Simonovic, Miroslav"]
[Black "Kalajzic, Ivan"]
[WhiteFideId "919152"]
[BlackFideId "14506378"]
[WhiteElo "2082"]
[BlackElo "2062"]
[Result "0-1"]
[Round "06"]
[TimeControl "180+2"]
[Date "2023.02.07"]
[WhiteClock "0:00:04"]
[BlackClock "0:00:07"]

1. d4 {[%clk 0:03:00]}  Nc6 {[%clk 0:02:59]} 2. Bg5 {[%clk 0:03:00]}  h6 {[%clk 0:02:59]} 3. Bh4 {[%clk 0:03:01]}  g5 {[%clk 0:02:59]} 4. Bg3 {[%clk 0:03:01]}  Bg7 {[%clk 0:03:00]} 5. e3 {[%clk 0:03:01]}  d6 {[%clk 0:03:00]} 6. c4 {[%clk 0:03:00]}  Bf5 {[%clk 0:03:00]} 7. Bd3 {[%clk 0:03:00]}  Qd7 {[%clk 0:03:00]} 8. Nc3 {[%clk 0:02:59]}  Nf6 {[%clk 0:03:00]} 9. e4 {[%clk 0:02:53]}  Bg6 {[%clk 0:03:00]} 10. Nge2 {[%clk 0:02:46]}  O-O {[%clk 0:02:58]} 11. a3 {[%clk 0:02:45]}  e5 {[%clk 0:02:57]} 12. d5 {[%clk 0:02:43]}  Nd4 {[%clk 0:02:56]} 13. O-O {[%clk 0:02:27]}  c5 {[%clk 0:02:56]} 14. dxc6 {[%clk 0:02:26]}  bxc6 {[%clk 0:02:54]} 15. b4 {[%clk 0:02:21]}  Nh5 {[%clk 0:02:46]} 16. f3 {[%clk 0:01:55]}  Nf4 {[%clk 0:02:35]} 17. Bxf4 {[%clk 0:01:48]}  exf4 {[%clk 0:02:28]} 18. Rc1 {[%clk 0:01:40]}  a5 {[%clk 0:02:25]} 19. Bc2 {[%clk 0:01:04]}  Qa7 {[%clk 0:02:16]} 20. Kh1 {[%clk 0:01:02]}  Be5 {[%clk 0:02:12]} 21. b5 {[%clk 0:00:51]}  Nxe2 {[%clk 0:01:47]} 22. Nxe2 {[%clk 0:00:49]}  Rfc8 {[%clk 0:01:34]} 23. a4 {[%clk 0:00:48]}  cxb5 {[%clk 0:01:30]} 24. cxb5 {[%clk 0:00:49]}  Rc5 {[%clk 0:01:26]} 25. Bb3 {[%clk 0:00:49]}  Rac8 {[%clk 0:01:21]} 26. Qd2 {[%clk 0:00:35]}  Kg7 {[%clk 0:01:15]} 27. Bd5 {[%clk 0:00:19]}  f6 {[%clk 0:01:12]} 28. Bc6 {[%clk 0:00:19]}  Bf7 {[%clk 0:01:12]} 29. Rxc5 {[%clk 0:00:19]}  dxc5 {[%clk 0:01:09]} 30. Rd1 {[%clk 0:00:17]}  c4 {[%clk 0:01:07]} 31. Nc3 {[%clk 0:00:16]}  Qe3 {[%clk 0:01:02]} 32. Nd5 {[%clk 0:00:14]}  Bxd5 {[%clk 0:01:00]} 33. exd5 {[%clk 0:00:13]}  c3 {[%clk 0:00:57]} 34. Qc2 {[%clk 0:00:13]}  Bd6 {[%clk 0:00:47]} 35. b6 {[%clk 0:00:12]}  Bc5 {[%clk 0:00:37]} 36. b7 {[%clk 0:00:11]}  Rd8 {[%clk 0:00:36]} 37. h3 {[%clk 0:00:10]}  h5 {[%clk 0:00:35]} 38. Qd3 {[%clk 0:00:09]}  Qxd3 {[%clk 0:00:33]} 39. Rxd3 {[%clk 0:00:10]}  Bb4 {[%clk 0:00:25]} 40. Rd1 {[%clk 0:00:08]}  Ba3 {[%clk 0:00:24]} 41. Rb1 {[%clk 0:00:07]}  c2 {[%clk 0:00:24]} 42. Ra1 {[%clk 0:00:06]}  c1=Q+ {[%clk 0:00:24]} 43. Rxc1 {[%clk 0:00:07]}  Bxc1 {[%clk 0:00:25]} 44. Kg1 {[%clk 0:00:07]}  Be3+ {[%clk 0:00:25]} 45. Kf1 {[%clk 0:00:07]}  Kf8 {[%clk 0:00:25]} 46. Ke2 {[%clk 0:00:07]}  Ke7 {[%clk 0:00:25]} 47. Kd3 {[%clk 0:00:08]}  Kd6 {[%clk 0:00:25]} 48. Ke4 {[%clk 0:00:08]}  Rf8 {[%clk 0:00:22]} 49. Kd3 {[%clk 0:00:07]}  Ba7 {[%clk 0:00:22]} 50. Kc4 {[%clk 0:00:08]}  Bb8 {[%clk 0:00:19]} 51. Kb5 {[%clk 0:00:08]}  Bc7 {[%clk 0:00:18]} 52. Ka6 {[%clk 0:00:07]}  Rf7 {[%clk 0:00:18]} 53. Ka7 {[%clk 0:00:07]}  Re7 {[%clk 0:00:17]} 54. b8=Q {[%clk 0:00:07]}  Bxb8+ {[%clk 0:00:17]} 55. Kxb8 {[%clk 0:00:08]}  Re2 {[%clk 0:00:17]} 56. Ka7 {[%clk 0:00:07]}  Rxg2 {[%clk 0:00:17]} 57. Ka6 {[%clk 0:00:08]}  g4 {[%clk 0:00:16]} 58. hxg4 {[%clk 0:00:07]}  hxg4 {[%clk 0:00:16]} 59. fxg4 {[%clk 0:00:07]}  f3 {[%clk 0:00:17]} 60. Kxa5 {[%clk 0:00:08]}  f2 {[%clk 0:00:17]} 61. Kb6 {[%clk 0:00:08]}  f1=Q {[%clk 0:00:17]} 62. a5 {[%clk 0:00:08]}  Rb2+ {[%clk 0:00:18]} 63. Ka7 {[%clk 0:00:08]}  Qb1 {[%clk 0:00:17]} 64. a6 {[%clk 0:00:08]}  Rb8 {[%clk 0:00:16]} 65. Bb7 {[%clk 0:00:06]}  Rd8 {[%clk 0:00:12]} 66. g5 {[%clk 0:00:04]}  Kc7 {[%clk 0:00:12]} 67. d6+ {[%clk 0:00:04]}  Rxd6 {[%clk 0:00:11]} 68. Ka8 {[%clk 0:00:04]}  Rd8+ {[%clk 0:00:10]} 69. Ka7 {[%clk 0:00:04]}  Qb6# {[%clk 0:00:07]} 0-1


[Site "https://www.chess.com"]

[Event "Titled Tuesday Blitz February 07 Early 2023"]
[White "Kaplan, Avi Harrison"]
[Black "Zanette, Edgard Vinicius"]
[WhiteFideId "30934559"]
[BlackFideId "2109263"]
[WhiteElo "2146"]
[BlackElo "2085"]
[Result "1-0"]
[Round "06"]
[TimeControl "180+2"]
[Date "2023.02.07"]
[WhiteClock "0:00:07"]
[BlackClock "0:00:14"]

1. Nf3 {[%clk 0:02:57]}  c5 {[%clk 0:02:59]} 2. e4 {[%clk 0:02:57]}  d6 {[%clk 0:02:59]} 3. d4 {[%clk 0:02:57]}  cxd4 {[%clk 0:03:00]} 4. Nxd4 {[%clk 0:02:58]}  Nf6 {[%clk 0:03:00]} 5. Nc3 {[%clk 0:02:58]}  a6 {[%clk 0:03:00]} 6. h4 {[%clk 0:02:53]}  e5 {[%clk 0:02:54]} 7. Nb3 {[%clk 0:02:50]}  Be7 {[%clk 0:02:44]} 8. Be2 {[%clk 0:02:48]}  h5 {[%clk 0:02:40]} 9. Bg5 {[%clk 0:02:48]}  Be6 {[%clk 0:02:19]} 10. Qd2 {[%clk 0:02:40]}  Nbd7 {[%clk 0:02:18]} 11. O-O-O {[%clk 0:02:32]}  Rc8 {[%clk 0:02:17]} 12. Kb1 {[%clk 0:02:31]}  Rxc3 {[%clk 0:02:17]} 13. Qxc3 {[%clk 0:02:27]}  Nxe4 {[%clk 0:02:17]} 14. Qf3 {[%clk 0:02:20]}  Nxg5 {[%clk 0:01:59]} 15. hxg5 {[%clk 0:02:14]}  Bg4 {[%clk 0:01:58]} 16. Qd3 {[%clk 0:01:59]}  Bxe2 {[%clk 0:01:47]} 17. Qxe2 {[%clk 0:01:59]}  Bxg5 {[%clk 0:01:30]} 18. Rxh5 {[%clk 0:01:57]}  Rxh5 {[%clk 0:01:23]} 19. Qxh5 {[%clk 0:01:58]}  Be7 {[%clk 0:01:24]} 20. Qh8+ {[%clk 0:01:51]}  Nf8 {[%clk 0:01:24]} 21. Qxg7 {[%clk 0:01:51]}  Qb6 {[%clk 0:01:23]} 22. Qg3 {[%clk 0:01:40]}  a5 {[%clk 0:01:20]} 23. Nd2 {[%clk 0:01:37]}  Qd4 {[%clk 0:01:19]} 24. Qf3 {[%clk 0:01:33]}  Qb4 {[%clk 0:01:09]} 25. Ne4 {[%clk 0:01:23]}  Ne6 {[%clk 0:00:57]} 26. a3 {[%clk 0:01:07]}  Qb6 {[%clk 0:00:54]} 27. Nf6+ {[%clk 0:01:07]}  Bxf6 {[%clk 0:00:47]} 28. Qxf6 {[%clk 0:01:06]}  Nd4 {[%clk 0:00:42]} 29. c3 {[%clk 0:00:54]}  Qb3 {[%clk 0:00:33]} 30. Rc1 {[%clk 0:00:33]}  Ne2 {[%clk 0:00:29]} 31. Qxd6 {[%clk 0:00:33]}  Nxc1 {[%clk 0:00:25]} 32. Qxe5+ {[%clk 0:00:34]}  Kd7 {[%clk 0:00:21]} 33. Kxc1 {[%clk 0:00:33]}  Qa2 {[%clk 0:00:21]} 34. Qxa5 {[%clk 0:00:31]}  Qa1+ {[%clk 0:00:20]} 35. Kc2 {[%clk 0:00:32]}  Qf1 {[%clk 0:00:20]} 36. Qd5+ {[%clk 0:00:32]}  Kc8 {[%clk 0:00:19]} 37. Qf3 {[%clk 0:00:30]}  Qc4 {[%clk 0:00:17]} 38. b3 {[%clk 0:00:25]}  Qe6 {[%clk 0:00:17]} 39. Qd3 {[%clk 0:00:23]}  Qe1 {[%clk 0:00:17]} 40. f3 {[%clk 0:00:16]}  Qf2+ {[%clk 0:00:16]} 41. Qd2 {[%clk 0:00:16]}  Qc5 {[%clk 0:00:16]} 42. Kb2 {[%clk 0:00:12]}  Qg1 {[%clk 0:00:16]} 43. a4 {[%clk 0:00:11]}  Qc5 {[%clk 0:00:16]} 44. Qd4 {[%clk 0:00:11]}  Qg5 {[%clk 0:00:16]} 45. Qc4+ {[%clk 0:00:11]}  Kb8 {[%clk 0:00:15]} 46. Qxf7 {[%clk 0:00:10]}  Qxg2+ {[%clk 0:00:15]} 47. Ka3 {[%clk 0:00:11]}  Qc2 {[%clk 0:00:15]} 48. Qc4 {[%clk 0:00:10]}  Qc1+ {[%clk 0:00:15]} 49. Kb4 {[%clk 0:00:10]}  Qe3 {[%clk 0:00:16]} 50. Qg8+ {[%clk 0:00:06]}  Ka7 {[%clk 0:00:15]} 51. Qd5 {[%clk 0:00:05]}  Qb6+ {[%clk 0:00:14]} 52. Qb5 {[%clk 0:00:06]}  Qf2 {[%clk 0:00:14]} 53. Qc5+ {[%clk 0:00:06]}  Qxc5+ {[%clk 0:00:14]} 54. Kxc5 {[%clk 0:00:07]} 1-0


[Site "https://www.chess.com"]

[Event "Titled Tuesday Blitz February 07 Early 2023"]
[White "Fan_Of_Chucky"]
[Black "Bozorov, Makhsum"]
[BlackFideId "14201330"]
[WhiteElo "2269"]
[BlackElo "2145"]
[Result "1-0"]
[Round "06"]
[TimeControl "180+2"]
[Date "2023.02.07"]
[WhiteClock "0:01:17"]
[BlackClock "0:00:21"]

1. d4 {[%clk 0:03:00]}  Nf6 {[%clk 0:02:56]} 2. c4 {[%clk 0:02:59]}  g6 {[%clk 0:02:56]} 3. Nf3 {[%clk 0:02:58]}  Bg7 {[%clk 0:02:54]} 4. g3 {[%clk 0:02:59]}  c6 {[%clk 0:02:54]} 5. Bg2 {[%clk 0:02:58]}  d5 {[%clk 0:02:54]} 6. O-O {[%clk 0:02:59]}  O-O {[%clk 0:02:53]} 7. cxd5 {[%clk 0:02:55]}  cxd5 {[%clk 0:02:53]} 8. Ne5 {[%clk 0:02:55]}  Ng4 {[%clk 0:02:53]} 9. Nxg4 {[%clk 0:02:48]}  Bxg4 {[%clk 0:02:51]} 10. Nc3 {[%clk 0:02:47]}  Nc6 {[%clk 0:02:46]} 11. h3 {[%clk 0:02:45]}  Be6 {[%clk 0:02:41]} 12. e4 {[%clk 0:02:42]}  Nxd4 {[%clk 0:02:37]} 13. exd5 {[%clk 0:02:41]}  Bd7 {[%clk 0:02:28]} 14. Bh6 {[%clk 0:02:36]}  Bxh6 {[%clk 0:02:22]} 15. Qxd4 {[%clk 0:02:36]}  Bg7 {[%clk 0:02:23]} 16. Qd2 {[%clk 0:02:31]}  Rc8 {[%clk 0:02:21]} 17. Qe3 {[%clk 0:02:28]}  b6 {[%clk 0:02:14]} 18. Rfe1 {[%clk 0:02:25]}  e5 {[%clk 0:02:02]} 19. d6 {[%clk 0:02:22]}  Be6 {[%clk 0:01:28]} 20. Rad1 {[%clk 0:02:18]}  Qd7 {[%clk 0:01:28]} 21. Nd5 {[%clk 0:02:14]}  Bxd5 {[%clk 0:01:25]} 22. Bxd5 {[%clk 0:02:11]}  Kh8 {[%clk 0:01:23]} 23. Bb3 {[%clk 0:02:05]}  f5 {[%clk 0:01:19]} 24. Rd5 {[%clk 0:02:01]}  e4 {[%clk 0:01:12]} 25. Rc1 {[%clk 0:01:58]}  Bxb2 {[%clk 0:01:03]} 26. Rxc8 {[%clk 0:01:47]}  Rxc8 {[%clk 0:01:04]} 27. Qd2 {[%clk 0:01:47]}  Bf6 {[%clk 0:00:53]} 28. g4 {[%clk 0:01:42]}  Rc5 {[%clk 0:00:45]} 29. g5 {[%clk 0:01:38]}  Bd8 {[%clk 0:00:20]} 30. Rxc5 {[%clk 0:01:33]}  bxc5 {[%clk 0:00:21]} 31. Qd5 {[%clk 0:01:24]}  Qg7 {[%clk 0:00:21]} 32. Qe6 {[%clk 0:01:22]}  Qf8 {[%clk 0:00:21]} 33. Qe5+ {[%clk 0:01:17]} 1-0


[Site "https://www.chess.com"]

[Event "Titled Tuesday Blitz February 07 Early 2023"]
[White "Shubenkova, Veronika"]
[Black "Ciuffoletti, Paolo"]
[WhiteFideId "44124040"]
[BlackFideId "807630"]
[WhiteElo "1960"]
[BlackElo "2106"]
[Result "0-1"]
[Round "06"]
[TimeControl "180+2"]
[Date "2023.02.07"]
[WhiteClock "0:01:15"]
[BlackClock "0:00:16"]

1. e4 {[%clk 0:02:21]}  c5 {[%clk 0:02:56]} 2. Nc3 {[%clk 0:02:21]}  Nc6 {[%clk 0:02:56]} 3. g3 {[%clk 0:02:21]}  g6 {[%clk 0:02:55]} 4. Bg2 {[%clk 0:02:21]}  Bg7 {[%clk 0:02:56]} 5. d3 {[%clk 0:02:21]}  d6 {[%clk 0:02:56]} 6. f4 {[%clk 0:02:21]}  e6 {[%clk 0:02:56]} 7. Nf3 {[%clk 0:02:21]}  Nge7 {[%clk 0:02:56]} 8. O-O {[%clk 0:02:21]}  Nd4 {[%clk 0:02:55]} 9. Be3 {[%clk 0:02:21]}  Rb8 {[%clk 0:02:54]} 10. Rb1 {[%clk 0:02:22]}  b5 {[%clk 0:02:51]} 11. Ne2 {[%clk 0:02:22]}  Nec6 {[%clk 0:02:43]} 12. Nexd4 {[%clk 0:02:21]}  cxd4 {[%clk 0:02:29]} 13. Bf2 {[%clk 0:02:21]}  O-O {[%clk 0:02:22]} 14. Qe2 {[%clk 0:02:20]}  Bd7 {[%clk 0:02:16]} 15. Rbe1 {[%clk 0:02:19]}  Qa5 {[%clk 0:02:13]} 16. a3 {[%clk 0:02:17]}  b4 {[%clk 0:02:09]} 17. axb4 {[%clk 0:02:17]}  Qxb4 {[%clk 0:02:05]} 18. b3 {[%clk 0:02:16]}  a5 {[%clk 0:02:02]} 19. e5 {[%clk 0:02:16]}  d5 {[%clk 0:01:58]} 20. Ra1 {[%clk 0:02:16]}  Ra8 {[%clk 0:01:54]} 21. Be1 {[%clk 0:02:15]}  Qb6 {[%clk 0:01:53]} 22. Qf2 {[%clk 0:02:15]}  Rfc8 {[%clk 0:01:49]} 23. Bc3 {[%clk 0:02:14]}  Bf8 {[%clk 0:01:40]} 24. Bb2 {[%clk 0:02:08]}  a4 {[%clk 0:01:25]} 25. Nxd4 {[%clk 0:02:01]}  Bc5 {[%clk 0:01:15]} 26. c3 {[%clk 0:02:00]}  a3 {[%clk 0:01:01]} 27. b4 {[%clk 0:01:59]}  Bxd4 {[%clk 0:00:50]} 28. cxd4 {[%clk 0:01:57]}  axb2 {[%clk 0:00:50]} 29. Qxb2 {[%clk 0:01:57]}  Qxb4 {[%clk 0:00:47]} 30. Qxb4 {[%clk 0:01:57]}  Nxb4 {[%clk 0:00:47]} 31. Rxa8 {[%clk 0:01:57]}  Rxa8 {[%clk 0:00:46]} 32. Rb1 {[%clk 0:01:57]}  Nxd3 {[%clk 0:00:40]} 33. Bf1 {[%clk 0:01:57]}  Ra3 {[%clk 0:00:33]} 34. Rb8+ {[%clk 0:01:56]}  Kg7 {[%clk 0:00:32]} 35. Rb1 {[%clk 0:01:54]}  Ba4 {[%clk 0:00:30]} 36. Be2 {[%clk 0:01:47]}  Bc2 {[%clk 0:00:28]} 37. Rf1 {[%clk 0:01:38]}  Rb3 {[%clk 0:00:25]} 38. Bg4 {[%clk 0:01:33]}  Rb1 {[%clk 0:00:23]} 39. Rxb1 {[%clk 0:01:33]}  Bxb1 {[%clk 0:00:23]} 40. Be2 {[%clk 0:01:31]}  Nb4 {[%clk 0:00:23]} 41. Kf2 {[%clk 0:01:28]}  Be4 {[%clk 0:00:18]} 42. Bd1 {[%clk 0:01:22]}  Nc2 {[%clk 0:00:18]} 43. Bxc2 {[%clk 0:01:22]}  Bxc2 {[%clk 0:00:18]} 44. Ke3 {[%clk 0:01:22]}  Be4 {[%clk 0:00:18]} 45. Kd2 {[%clk 0:01:22]}  h5 {[%clk 0:00:18]} 46. h4 {[%clk 0:01:22]}  Kf8 {[%clk 0:00:17]} 47. Kc3 {[%clk 0:01:22]}  Ke7 {[%clk 0:00:18]} 48. Kb4 {[%clk 0:01:23]}  Kd7 {[%clk 0:00:18]} 49. Kb5 {[%clk 0:01:23]}  Kc7 {[%clk 0:00:18]} 50. Kc5 {[%clk 0:01:23]}  Bd3 {[%clk 0:00:17]} 51. Kb4 {[%clk 0:01:23]}  Kb6 {[%clk 0:00:18]} 52. Ka4 {[%clk 0:01:24]}  Bc4 {[%clk 0:00:17]} 53. Kb4 {[%clk 0:01:24]}  Bd3 {[%clk 0:00:17]} 54. Ka4 {[%clk 0:01:24]}  Bc2+ {[%clk 0:00:17]} 55. Kb4 {[%clk 0:01:24]}  Bd1 {[%clk 0:00:17]} 56. Kc3 {[%clk 0:01:21]}  Kb5 {[%clk 0:00:17]} 57. Kd2 {[%clk 0:01:21]}  Bg4 {[%clk 0:00:17]} 58. Kc3 {[%clk 0:01:22]}  Ka4 {[%clk 0:00:17]} 59. f5 {[%clk 0:01:17]}  Bxf5 {[%clk 0:00:16]} 60. Kd2 {[%clk 0:01:15]}  Kb4 {[%clk 0:00:16]} 61. Ke3 {[%clk 0:01:15]}  Kc4 {[%clk 0:00:16]} 62. g4 {[%clk 0:01:15]}  Bxg4 {[%clk 0:00:16]} 0-1


[Site "https://www.chess.com"]

[Event "Titled Tuesday Blitz February 07 Early 2023"]
[White "Onslow, Alfie"]
[Black "Maung, Maung Kyaw Zaw Hein"]
[WhiteFideId "436976"]
[BlackFideId "13001698"]
[WhiteElo "2157"]
[BlackElo "2119"]
[Result "1-0"]
[Round "06"]
[TimeControl "180+2"]
[Date "2023.02.07"]
[WhiteClock "0:02:40"]
[BlackClock "0:02:34"]

1. e4 {[%clk 0:03:00]}  c6 {[%clk 0:02:59]} 2. Nf3 {[%clk 0:02:59]}  d5 {[%clk 0:03:00]} 3. d3 {[%clk 0:03:00]}  Bg4 {[%clk 0:03:00]} 4. h3 {[%clk 0:02:59]}  Bxf3 {[%clk 0:03:00]} 5. Qxf3 {[%clk 0:02:59]}  e5 {[%clk 0:03:00]} 6. Nc3 {[%clk 0:02:55]}  d4 {[%clk 0:02:57]} 7. Ne2 {[%clk 0:02:55]}  Be7 {[%clk 0:02:57]} 8. g4 {[%clk 0:02:55]}  Bg5 {[%clk 0:02:56]} 9. Bxg5 {[%clk 0:02:51]}  Qxg5 {[%clk 0:02:57]} 10. h4 {[%clk 0:02:51]}  Qd8 {[%clk 0:02:55]} 11. Ng3 {[%clk 0:02:50]}  Nd7 {[%clk 0:02:53]} 12. Nf5 {[%clk 0:02:49]}  Qf6 {[%clk 0:02:36]} 13. g5 {[%clk 0:02:44]}  Qg6 {[%clk 0:02:35]} 14. h5 {[%clk 0:02:39]}  Qxg5 {[%clk 0:02:35]} 15. Nd6+ {[%clk 0:02:40]}  Kd8 {[%clk 0:02:34]} 16. Nxf7+ {[%clk 0:02:40]} 1-0


[Site "https://www.chess.com"]